bitfinex/quotes_ETHUSD_20251008
["timestamp","ask_amount","ask_price","bid_price","bid_amount"]
[1759885812704,2.23568849,4476.9,4476.8,3.54]
[1759885813342,2.23568849,4476.9,4476.8,1.001]
[1759885813506,2.69938849,4476.9,4476.8,3.54]
[1759885815037,2.23568849,4476.9,4476.8,3.54]
[1759885815737,32.70878849,4476.9,4476.8,1.001]
[1759885816046,33.39851685,4476.9,4476.8,3.54]
[1759885816545,22.83651685,4476.9,4476.8,3.54]
[1759885817360,22.53051685,4476.9,4476.8,3.54]
[1759885818637,17.72851685,4476.9,4476.8,3.54]
[1759885818836,16.90851685,4476.9,4476.8,3.54]
[1759885819743,4.84541685,4476.9,4476.8,3.54]
[1759885820035,5.31851685,4476.9,4476.8,3.54]
[1759885820740,5.31851685,4476.9,4476.8,1.001]
[1759885820942,35.31851685,4476.9,4476.8,2.329]
[1759885821145,35.31851685,4476.9,4476.8,1.001]
[1759885821347,35.31851685,4476.9,4476.8,1.953]
[1759885821864,8.85051685,4476.9,4476.8,1.953]
[1759885822066,8.23651685,4476.9,4476.8,1.953]
[1759885822437,23.31951685,4476.9,4476.8,1.953]
[1759885822860,18.39951685,4476.9,4476.8,1.953]
[1759885823271,5.31851685,4476.9,4476.8,1.953]
[1759885823448,15.31851685,4476.9,4476.8,1.953]
[1759885823967,35.31851685,4476.9,4476.8,1.953]
[1759885824165,5.31851685,4476.9,4476.8,1.953]
[1759885824365,33.68551685,4476.9,4476.8,1.953]
[1759885824559,23.68551685,4476.9,4476.8,1.953]
[1759885828057,23.68479725,4476.9,4476.8,1.953]
[1759885828447,23.68458297,4476.9,4476.8,1.953]
[1759885829780,36.06103691,4476.9,4476.8,1e-08]
[1759885829980,38.71669973,4476.9,4476.8,1e-08]
[1759885830275,0.6336,4476.4,4476.3,0.001]
[1759885830574,35.47633246,4476.4,4476.3,0.001]
[1759885830774,35.94943246,4476.4,4476.3,0.001]
[1759885830950,36.03895366,4476.4,4476.3,0.001]
[1759885831273,36.83969932,4476.4,4476.3,0.001]
[1759885831464,40.92995366,4476.4,4476.3,0.001]
[1759885840385,38.39095366,4476.4,4476.3,0.001]
[1759885840583,40.93095366,4476.4,4476.3,0.001]
[1759885841292,0.6336,4476.2,4475.8,1e-08]
[1759885841494,30.7448,4475.9,4475.8,1e-08]
[1759885841700,35.89359448,4475.9,4475.8,1e-08]
[1759885841869,36.41093171,4475.9,4475.8,1e-08]
[1759885842501,38.64511924,4475.9,4475.8,1e-08]
[1759885844881,36.10511924,4475.9,4475.8,1e-08]
[1759885845082,6.10511924,4475.9,4475.8,1e-08]
[1759885845290,36.10511924,4475.9,4475.8,1e-08]
[1759885845788,36.10492017,4475.9,4475.8,1e-08]
[1759885845994,6.10492017,4475.9,4475.8,1e-08]
[1759885846195,36.10492017,4475.9,4475.8,1e-08]
[1759885848001,37.30433224,4475.9,4475.8,1e-08]
[1759885853295,36.10492017,4475.9,4475.8,1e-08]
[1759885854302,36.10492017,4475.9,4475.4,0.001]
[1759885854303,2.23438721,4475.5,4475.4,0.001]
[1759885854482,35.79753716,4475.5,4475.4,0.001]
[1759885854686,35.91528262,4475.5,4475.4,0.001]
[1759885854882,36.00482306,4475.5,4475.4,0.001]
[1759885855282,37.20663999,4475.5,4475.4,0.001]
[1759885856208,6.00482306,4475.5,4475.4,0.001]
[1759885856417,36.00482306,4475.5,4475.4,0.001]
[1759885857514,2.2346868,4474.9,4474.8,0.001]
[1759885857719,34.84328221,4474.9,4474.8,0.001]
[1759885857920,35.28198221,4474.9,4474.8,0.001]
[1759885858119,30.31798221,4474.9,4474.8,0.001]
[1759885858321,5.28198221,4474.9,4474.8,0.001]
[1759885858717,18.78398221,4474.9,4474.8,0.001]
[1759885859015,6.08430861,4474.9,4474.8,0.001]
[1759885859217,5.28198221,4474.9,4474.8,0.001]
[1759885859593,24.48498221,4474.9,4474.8,0.001]
[1759885859793,8.35598221,4474.9,4474.8,0.001]
[1759885859998,5.28198221,4474.9,4474.8,0.001]
[1759885860316,7.90798221,4474.9,4474.8,0.001]
[1759885860899,8.54158221,4474.9,4474.8,0.001]
[1759885861099,0.6336,4474.5,4474.1,0.01]
[1759885861417,4.95957723,4474.2,4474.1,0.01]
[1759885861617,5.64817264,4474.2,4474.1,0.01]
[1759885861823,6.08687264,4474.2,4474.1,0.01]
[1759885862393,5.28233184,4474.2,4474.1,0.01]
[1759885863592,32.86898616,4473.5,4473.3,0.001]
[1759885863816,35.47758157,4473.5,4473.3,0.001]
[1759885864006,36.72016523,4473.5,4473.3,0.001]
[1759885864326,2.60859541,4473.5,4473.3,0.001]
[1759885864494,0.20833867,4473.5,4473.3,0.001]
[1759885866298,0.20833867,4473.6,4473.3,0.001]
[1759885867244,2.44368663,4473.6,4473.3,0.001]
[1759885867523,0.20833867,4473.5,4473.3,0.001]
[1759885867898,0.20833867,4473.5,4473.4,0.4753]
[1759885868223,0.1112,4473.8,4473.4,0.4753]
[1759885868717,0.1112,4473.8,4473.4,0.001]
[1759885868718,0.32028093,4473.8,4473.4,0.001]
[1759885868926,2.23538035,4473.6,4473.4,0.001]
[1759885869123,2.23538616,4473.5,4473.4,2.541]
[1759885869297,2.34658616,4473.5,4473.4,0.001]
[1759885870225,4.91437732,4473.5,4473.4,0.001]
[1759885870431,5.39614886,4473.5,4473.4,0.001]
[1759885871321,4.95744886,4473.5,4473.4,0.001]
[1759885872624,5.39614886,4473.5,4473.4,0.001]
[1759885872796,35.39614886,4473.5,4473.4,0.001]
[1759885874399,4.95744886,4473.5,4473.4,0.001]
[1759885875026,5.40424886,4473.5,4473.4,0.001]
[1759885875824,35.40424886,4473.5,4473.4,0.001]
[1759885877830,5.40424886,4473.5,4473.4,0.001]
[1759885878001,35.40424886,4473.5,4473.4,0.001]
[1759885879029,4.95744886,4473.5,4473.4,0.001]
[1759885881222,5.40424886,4473.5,4473.4,0.001]
[1759885882530,4.95744886,4473.5,4473.4,0.001]
[1759885882904,5.40424886,4473.5,4473.4,0.001]
[1759885883842,4.95744886,4473.5,4473.4,0.001]
[1759885887135,5.40424886,4473.5,4473.4,0.001]
[1759885888341,6.00675125,4473.5,4473.4,0.001]
[1759885888723,5.55995125,4473.5,4473.4,0.001]
[1759885888937,4.95744886,4473.5,4473.4,0.001]
[1759885890742,0.6908627,4473.5,4473.4,0.001]
[1759885891049,0.20920319,4473.5,4473.4,0.4722]
[1759885891217,2.23535256,4473.6,4473.4,0.4722]
[1759885891422,0.20920319,4473.5,4473.4,0.4722]
[1759885892346,0.20920319,4473.5,4473.4,0.001]
[1759885892915,1.92,4473.7,4473.4,0.001]
[1759885892916,2.71701,4473.8,4473.4,0.4722]
[1759885893238,2.23523846,4473.8,4473.5,0.4712]
[1759885893443,0.002,4474.0,4473.6,0.49355336]
[1759885893650,0.002,4474.0,4473.7,2.539]
[1759885893842,0.002,4474.0,4473.8,0.3256077]
[1759885894023,0.002,4474.0,4473.9,0.4712]
[1759885894219,0.002,4474.0,4473.8,0.30325534]
[1759885894432,2.23538616,4473.5,4473.4,0.001]
[1759885894645,2.68218616,4473.5,4473.4,2.481]
[1759885894849,2.68218616,4473.5,4473.4,2.54]
[1759885895316,2.23538616,4473.5,4473.4,2.54]
[1759885897349,0.002,4474.0,4473.4,3.2663]
[1759885897523,0.21116016,4474.0,4473.5,0.02235386]
[1759885897719,0.002,4474.0,4473.6,0.4712]
[1759885898341,0.21114606,4474.0,4473.5,0.02235386]
[1759885898544,0.20914606,4473.9,4473.6,0.4712]
[1759885898761,2.2351863,4473.9,4473.6,0.4712]
[1759885899051,2.23528622,4473.7,4473.6,0.4712]
[1759885899246,2.23533619,4473.6,4473.5,0.32896539]
[1759885899452,2.23528875,4473.7,4473.5,0.32896539]
[1759885899644,2.23528875,4473.7,4473.4,2.81745436]
[1759885900149,0.002,4474.0,4473.4,2.54]
[1759885900871,2.23538616,4473.5,4473.4,2.54]
[1759885901035,2.23538616,4473.5,4473.4,0.001]
[1759885901226,2.34658616,4473.5,4473.4,2.54]
[1759885902553,4.90900309,4473.5,4473.4,2.54]
[1759885902750,35.39081403,4473.5,4473.4,2.54]
[1759885903327,29.46281403,4473.5,4473.4,2.54]
[1759885903661,4.84631403,4473.5,4473.4,2.54]
[1759885904339,4.84634606,4473.5,4473.4,2.54]
[1759885906357,5.31094606,4473.5,4473.4,2.54]
[1759885907545,2.6109599,4473.5,4473.4,2.54]
[1759885907862,4.36450309,4473.5,4473.4,2.54]
[1759885908259,1.92,4473.5,4473.4,2.9867]
[1759885908429,4.36451238,4473.5,4473.4,2.9867]
[1759885908632,4.8463555,4473.5,4473.4,2.9867]
[1759885909257,4.36451238,4473.5,4473.4,2.9867]
[1759885909460,4.84638252,4473.5,4473.4,2.9867]
[1759885910450,4.84638252,4473.5,4473.4,2.54]
[1759885915465,4.8465708,4473.5,4473.4,2.54]
[1759885916269,5.3111708,4473.5,4473.4,0.001]
[1759885916436,5.3111708,4473.5,4473.4,2.54]
[1759885917337,35.3111708,4473.5,4473.4,2.54]
[1759885917534,35.3111708,4473.5,4473.3,0.001]
[1759885917535,34.15543613,4473.4,4473.3,0.001]
[1759885917734,34.84662077,4473.4,4473.3,0.001]
[1759885917941,35.94482077,4473.4,4473.3,0.001]
[1759885918177,20.65370443,4473.4,4473.3,0.001]
[1759885918343,42.23553608,4473.2,4473.1,1e-08]
[1759885918544,32.92672072,4473.2,4473.1,1e-08]
[1759885918768,33.39144921,4473.2,4473.1,1e-08]
[1759885919168,34.02504921,4473.2,4473.1,1e-08]
[1759885919366,34.62756771,4473.2,4473.1,1e-08]
[1759885920547,5.94504921,4473.2,4473.1,1e-08]
[1759885920745,36.05878287,4473.2,4473.1,1e-08]
[1759885921074,36.05874544,4473.2,4473.1,1e-08]
[1759885921291,36.86182942,4473.2,4473.1,1e-08]
[1759885921588,36.17550469,4473.2,4473.1,1e-08]
[1759885921795,2.23583597,4472.6,4472.5,1e-08]
[1759885921947,34.99869068,4472.6,4472.5,1e-08]
[1759885922143,35.94531167,4472.6,4472.5,1e-08]
[1759885922369,35.94531167,4472.6,4471.5,0.1]
[1759885922370,2.23633598,4471.6,4471.5,0.1]
[1759885922558,2.44559069,4471.6,4471.5,0.1]
[1759885922758,4.84761168,4471.6,4471.5,0.1]
[1759885923176,5.31221168,4471.6,4471.5,0.1]
[1759885923376,4.83019069,4471.6,4471.5,0.1]
[1759885924374,4.62093598,4471.6,4471.5,0.1]
[1759885926159,4.15633598,4471.6,4471.5,0.1]
[1759885926758,4.15633598,4471.6,4471.5,0.101]
[1759885927351,4.62093598,4471.6,4471.5,0.101]
[1759885927555,5.30998546,4471.6,4471.5,0.101]
[1759885927792,5.30998546,4471.6,4471.5,0.001]
[1759885928282,5.10142451,4471.6,4471.5,0.001]
[1759885928492,4.62093598,4471.6,4471.5,0.001]
[1759885928672,5.10129054,4471.6,4471.5,0.001]
[1759885929578,4.62093598,4471.6,4471.5,0.001]
[1759885932182,35.46295584,4471.6,4471.5,0.001]
[1759885932516,38.48210976,4471.6,4471.5,0.001]
[1759885932820,38.57172422,4471.6,4471.5,0.001]
[1759885932996,39.17372896,4471.6,4471.5,0.001]
[1759885933317,4.79013605,4471.2,4471.1,1e-08]
[1759885933483,38.01770983,4471.2,4471.1,1e-08]
[1759885933682,38.48230983,4471.2,4471.1,1e-08]
[1759885933919,38.57193252,4471.2,4471.1,1e-08]
[1759885938889,37.80493252,4471.2,4471.1,1e-08]
[1759885939496,36.03293252,4471.2,4471.1,1e-08]
[1759885941809,6.03293252,4471.2,4471.1,1e-08]
[1759885942006,2.92510983,4471.2,4471.1,1e-08]
[1759885942410,3.35930983,4471.2,4471.1,1e-08]
[1759885943302,5.27930983,4471.2,4471.1,1e-08]
[1759885943626,4.84510983,4471.2,4471.1,1e-08]
[1759885944319,5.27930983,4471.2,4471.1,1e-08]
[1759885944621,5.27930983,4471.2,4471.1,0.00100001]
[1759885945130,35.91290983,4471.2,4471.1,0.00100001]
[1759885945424,38.45190983,4471.2,4471.1,0.00100001]
[1759885945617,38.54153554,4471.2,4471.1,0.00100001]
[1759885945812,36.30499949,4471.2,4470.2,0.001]
[1759885946013,34.15698633,4470.3,4470.2,0.001]
[1759885946215,34.84556011,4470.3,4470.2,0.001]
[1759885946444,35.27976011,4470.3,4470.2,0.001]
[1759885946741,26.10876011,4470.3,4470.2,0.001]
[1759885948430,36.51366061,4470.3,4470.2,0.001]
[1759885948835,35.91336011,4470.3,4470.2,0.001]
[1759885950226,35.91378462,4470.3,4470.2,0.001]
[1759885950445,31.12178462,4470.3,4470.2,0.001]
[1759885950911,31.92153527,4470.3,4470.2,0.001]
[1759885951414,36.71353527,4470.3,4470.2,0.001]
[1759885952436,35.91378462,4470.3,4470.2,0.001]
[1759885952635,35.70494025,4470.3,4470.2,0.001]
[1759885952838,35.91387332,4470.3,4470.2,0.001]
[1759885955428,5.91387332,4470.3,4470.2,0.001]
[1759885955622,35.91387332,4470.3,4470.2,0.001]
[1759885957614,43.03387332,4470.3,4470.2,0.001]
[1759885959236,45.38587332,4470.3,4470.2,0.001]
[1759885959445,43.03387332,4470.3,4470.2,0.001]
[1759885961446,44.24017046,4470.3,4470.2,0.001]
[1759885962443,29.83917046,4470.3,4470.2,0.001]
[1759885962657,28.75217046,4470.3,4470.2,0.001]
[1759885963445,14.24017046,4470.3,4470.2,0.001]
[1759885963618,40.45017046,4470.3,4470.2,0.001]
[1759885964747,44.24017046,4470.3,4470.2,0.001]
[1759885965357,44.24017046,4470.3,4470.2,0.0228]
[1759885966154,14.99867332,4470.3,4470.2,0.0228]
[1759885966360,15.44957332,4470.3,4470.2,0.0228]
[1759885966866,44.25687046,4470.3,4470.2,0.0228]
[1759885967638,37.13687046,4470.3,4470.2,0.0228]
[1759885969956,33.02987046,4470.3,4470.2,0.0228]
[1759885970453,31.82357332,4470.3,4470.2,0.0228]
[1759885970959,35.93057332,4470.3,4470.2,0.0228]
[1759885972765,34.90183637,4470.2,4470.1,0.00100001]
[1759885973068,42.71092336,4470.2,4470.1,0.00100001]
[1759885973268,43.16182336,4470.2,4470.1,0.00100001]
[1759885975434,44.3681205,4470.2,4470.1,0.00100001]
[1759885976967,39.2461205,4470.2,4470.1,0.00100001]
[1759885977970,44.3681205,4470.2,4470.1,0.00100001]
[1759885982684,32.3691205,4470.2,4470.1,0.00100001]
[1759885983153,33.7261205,4470.2,4470.1,0.00100001]
[1759885984073,44.3681205,4470.2,4470.1,0.00100001]
[1759885984372,35.0251205,4470.2,4470.1,0.00100001]
[1759885985180,35.0241205,4470.2,4470.1,0.00100001]
[1759885985852,13.7345205,4470.2,4470.1,0.00100001]
[1759885986056,12.52822336,4470.2,4470.1,0.00100001]
[1759885986259,13.33373964,4470.2,4470.1,0.00100001]
[1759885986666,12.88283964,4470.2,4470.1,0.00100001]
[1759885986955,3.64142961,4470.2,4470.1,0.00100001]
[1759885987342,5.56142961,4470.2,4470.1,0.00100001]
[1759885987986,6.01232961,4470.2,4470.1,0.00100001]
[1759885988152,36.04182336,4470.2,4470.1,0.00100001]
[1759885990255,39.7871205,4470.2,4470.1,0.00100001]
[1759885990447,34.79078651,4469.9,4469.8,0.001]
[1759885990649,36.68867096,4469.9,4469.8,0.001]
[1759885991154,37.13957096,4469.9,4469.8,0.001]
[1759885991347,45.7074014,4469.9,4469.8,0.001]
[1759885991751,45.79705704,4469.9,4469.8,0.001]
[1759885992183,4.79083656,4469.8,4469.1,1e-08]
[1759885992392,32.5536,4469.2,4469.1,1e-08]
[1759885992683,35.48100503,4469.2,4469.1,1e-08]
[1759885992886,35.93190503,4469.2,4469.1,1e-08]
[1759885993049,35.93480883,4469.2,4469.1,1e-08]
[1759885993380,36.73957069,4469.2,4469.1,1e-08]
[1759885993583,35.93480883,4469.2,4469.1,1e-08]
[1759885994663,38.47380883,4469.2,4469.1,1e-08]
[1759885995583,35.93480883,4469.2,4469.1,1e-08]
[1759885995879,38.47380883,4469.2,4469.1,1e-08]
[1759885996086,38.58519577,4469.2,4469.1,1e-08]
[1759885996779,38.58519577,4469.2,4469.1,0.00100001]
[1759885997361,39.38890789,4469.2,4469.1,0.00100001]
[1759885998350,17.28752095,4469.2,4469.1,0.00100001]
[1759885998554,16.48380883,4469.2,4469.1,0.00100001]
[1759885998769,35.93480883,4469.2,4469.1,0.00100001]
[1759885999470,36.04885988,4469.2,4469.1,0.00100001]
[1759885999790,35.93480883,4469.2,4469.1,0.00100001]
[1759885999950,36.02446708,4469.2,4469.1,0.00100001]
[1759886000464,15.41846708,4469.2,4469.1,0.00100001]
[1759886000686,34.76446708,4469.2,4469.1,0.00100001]
[1759886001483,16.08046708,4469.2,4469.1,0.00100001]
[1759886001672,6.02446708,4469.2,4469.1,0.00100001]
[1759886001849,15.36546708,4469.2,4469.1,0.00100001]
[1759886002479,15.09246708,4469.2,4469.1,0.00100001]
[1759886002854,15.75346708,4469.2,4469.1,0.00100001]
[1759886003054,15.42346708,4469.2,4469.1,0.00100001]
[1759886003255,15.10146708,4469.2,4469.1,0.00100001]
[1759886003989,22.12846708,4469.2,4469.1,0.00100001]
[1759886004386,4.93996708,4469.2,4469.1,0.00100001]
[1759886004578,3.01996708,4469.2,4469.1,0.00100001]
[1759886004761,4.93996708,4469.2,4469.1,0.00100001]
[1759886005084,4.64059463,4469.2,4469.1,0.00100001]
[1759886005259,4.84970364,4469.2,4469.1,0.00100001]
[1759886006052,2.61216673,4469.2,4469.1,0.00100001]
[1759886006255,2.44664592,4469.2,4469.1,0.45900001]
[1759886006477,0.32030901,4469.2,4469.1,0.45900001]
[1759886006682,0.1112,4469.2,4469.1,0.45900001]
[1759886007310,2.34873691,4469.2,4469.1,0.00100001]
[1759886007512,0.1112,4469.2,4469.1,0.00100001]
[1759886007809,0.1112,4469.2,4469.1,0.45900001]
[1759886008513,2.23735576,4469.6,4469.1,0.45900001]
[1759886008514,0.002,4470.2,4469.1,0.45900001]
[1759886008714,0.1112,4469.8,4469.2,0.29204285]
[1759886008890,0.1112,4469.8,4469.3,0.458]
[1759886009217,0.1112,4469.8,4469.2,0.29204285]
[1759886009218,2.34844,4469.8,4469.4,0.48037436]
[1759886009381,0.1112,4469.8,4469.4,0.02237436]
[1759886009583,0.48375911,4470.2,4469.5,0.458]
[1759886009782,0.002,4470.2,4469.6,0.02237336]
[1759886009991,0.002,4470.2,4469.7,0.72977156]
[1759886010195,0.002,4470.2,4469.8,2.56137236]
[1759886010395,0.002,4470.2,4469.8,3.01937236]
[1759886010597,0.002,4470.2,4469.9,0.458]
[1759886010998,0.002,4470.2,4470.0,0.458]
[1759886011218,0.002,4470.2,4470.0,0.78711439]
[1759886011515,2.23904279,4470.2,4470.1,0.458]
[1759886011717,0.002,4470.2,4470.0,0.32911439]
[1759886011918,0.4361,4470.1,4468.6,1.13108591]
[1759886012103,2.23753691,4469.2,4468.7,2.539]
[1759886012416,2.23753691,4469.2,4468.6,0.001]
[1759886012717,4.59363691,4469.2,4468.6,0.001]
[1759886013388,4.15753691,4469.2,4468.6,0.001]
[1759886013886,35.28418876,4469.2,4468.6,0.001]
[1759886014118,5.91778876,4469.2,4468.6,0.001]
[1759886014306,35.91778876,4469.2,4468.6,0.001]
[1759886015301,35.91978876,4469.2,4468.6,0.001]
[1759886018407,2.87138727,4468.7,4468.6,0.001]
[1759886018608,2.5536,4468.0,4466.1,0.01]
[1759886018811,2.23853868,4467.2,4466.4,0.017]
[1759886019340,2.23853868,4467.2,4466.1,0.544]
[1759886019517,2.23853868,4467.2,4466.3,0.4394]
[1759886019930,2.23853868,4467.2,4466.8,0.4394]
[1759886020446,2.23853868,4467.2,4466.3,0.5506]
[1759886022226,4.62783868,4467.2,4466.1,0.01]
[1759886022544,35.95157633,4467.2,4466.1,0.01]
[1759886023053,20.36657633,4467.2,4466.1,0.01]
[1759886023632,23.30157633,4467.2,4466.1,0.01]
[1759886023833,16.56457633,4467.2,4466.1,0.01]
[1759886024768,22.26157633,4467.2,4466.1,0.01]
[1759886025757,35.95157633,4467.2,4466.1,0.01]
[1759886025921,38.49057633,4467.2,4466.1,0.01]
[1759886026127,38.49057633,4467.2,4467.1,1e-08]
[1759886026770,38.94490879,4467.2,4467.1,1e-08]
[1759886027338,39.74786447,4467.2,4467.1,1e-08]
[1759886027532,2.5536,4466.9,4466.1,1e-08]
[1759886027738,32.5536,4466.2,4466.1,1e-08]
[1759886028045,35.48277754,4466.2,4466.1,1e-08]
[1759886028441,35.92717754,4466.2,4466.1,1e-08]
[1759886030049,35.92639274,4466.2,4466.1,1e-08]
[1759886031082,35.71830155,4466.2,4466.1,1e-08]
[1759886031381,35.92616096,4466.2,4466.1,1e-08]
[1759886031774,38.46616096,4466.2,4466.1,1e-08]
[1759886031974,35.92616096,4466.2,4466.1,1e-08]
[1759886032289,38.25830155,4466.2,4466.1,1e-08]
[1759886033166,27.41703989,4466.2,4466.1,1e-08]
[1759886033476,28.49503989,4466.2,4466.1,1e-08]
[1759886033786,27.86143989,4466.2,4466.1,0.00100001]
[1759886033976,38.25561008,4466.2,4466.1,0.00100001]
[1759886034179,37.77703989,4466.2,4466.1,0.00100001]
[1759886034783,38.25546122,4466.2,4466.1,0.00100001]
[1759886034983,38.25546091,4466.2,4466.1,0.00100001]
[1759886035184,37.77703989,4466.2,4466.1,0.00100001]
[1759886035389,38.25538445,4466.2,4466.1,0.00100001]
[1759886035588,37.77703989,4466.2,4466.1,0.00100001]
[1759886035773,38.25538257,4466.2,4466.1,0.00100001]
[1759886035981,37.77703989,4466.2,4466.1,0.00100001]
[1759886036365,38.25535263,4466.2,4466.1,0.00100001]
[1759886036581,14.43903989,4466.2,4466.1,0.00100001]
[1759886037092,35.23703989,4466.2,4466.1,0.00100001]
[1759886037272,24.67303989,4466.2,4466.1,0.00100001]
[1759886037471,12.72743989,4466.2,4466.1,0.00100001]
[1759886037695,4.15903989,4466.2,4466.1,0.00100001]
[1759886038482,4.60343989,4466.2,4466.1,0.00100001]
[1759886038774,2.2390377,4466.3,4466.1,0.00100001]
[1759886038979,2.23903989,4466.2,4466.1,0.00100001]
[1759886039281,2.54,4467.1,4466.1,0.00100001]
[1759886039282,0.4444,4467.1,4466.1,0.00100001]
[1759886039583,0.1112,4466.4,4466.1,0.00100001]
[1759886039975,0.1112,4466.4,4466.2,0.4368]
[1759886040213,0.1112,4466.4,4466.1,0.00100001]
[1759886040409,2.23903989,4466.2,4466.1,0.00100001]
[1759886040781,4.60343989,4466.2,4466.1,0.00100001]
[1759886040988,4.15903989,4466.2,4466.1,0.00100001]
[1759886042715,4.60343989,4466.2,4466.1,0.00100001]
[1759886043198,5.0836483,4466.2,4466.1,0.00100001]
[1759886043597,35.7172483,4466.2,4466.1,0.00100001]
[1759886044330,14.1592483,4466.2,4466.1,0.00100001]
[1759886044740,15.7522483,4466.2,4466.1,0.00100001]
[1759886044944,14.5312483,4466.2,4466.1,0.00100001]
[1759886045731,35.9258624,4466.2,4466.1,0.00100001]
[1759886046041,35.7172483,4466.2,4466.1,0.00100001]
[1759886046332,36.31748701,4466.2,4466.1,0.00100001]
[1759886046629,6.31748701,4466.2,4466.1,0.00100001]
[1759886046934,36.31748701,4466.2,4466.1,0.00100001]
[1759886047631,6.31748701,4466.2,4466.1,0.00100001]
[1759886047834,36.31748701,4466.2,4466.1,0.00100001]
[1759886048223,35.9262367,4466.2,4466.1,0.00100001]
[1759886048604,5.9262367,4466.2,4466.1,0.00100001]
[1759886048803,14.2452483,4466.2,4466.1,0.00100001]
[1759886049505,14.45429738,4466.2,4466.1,0.00100001]
[1759886049828,13.72531948,4466.2,4466.1,0.00100001]
[1759886050805,5.92631948,4466.2,4466.1,0.00100001]
[1759886051134,4.84831948,4466.2,4466.1,0.00100001]
[1759886051547,0.68927959,4466.2,4466.1,0.00100001]
[1759886051858,0.60285219,4466.7,4466.1,0.43780001]
[1759886052023,2.23892034,4466.5,4466.2,0.26769874]
[1759886052222,0.20922847,4466.4,4466.2,0.4368]
[1759886052420,0.1112,4466.7,4466.1,0.00100001]
[1759886052421,0.59140841,4466.7,4466.3,0.4368]
[1759886052641,0.20930946,4466.6,4466.4,0.4368]
[1759886052831,3.03884734,4467.3,4466.4,0.4368]
[1759886052832,1.0830606,4467.2,4466.5,0.02238889]
[1759886053034,0.1112,4467.0,4466.5,0.02238889]
[1759886053235,0.1112,4467.0,4466.6,0.67405645]
[1759886053443,30.4444,4466.9,4466.1,0.00100001]
[1759886053616,2.23903989,4466.2,4466.1,0.00100001]
[1759886053940,34.8485481,4466.2,4466.1,0.00100001]
[1759886054352,35.29296833,4466.2,4466.1,0.00100001]
[1759886055217,4.84856833,4466.2,4466.1,0.00100001]
[1759886056046,5.27886833,4466.2,4466.1,0.00100001]
[1759886056954,4.84864398,4466.2,4466.1,0.00100001]
[1759886057853,5.20364398,4466.2,4466.1,0.00100001]
[1759886058419,36.43426226,4466.2,4466.1,0.00100001]
[1759886058819,35.63394398,4466.2,4466.1,0.00100001]
[1759886059926,9.34794398,4466.2,4466.1,0.00100001]
[1759886060254,5.20364398,4466.2,4466.1,0.00100001]
[1759886060555,5.63394398,4466.2,4466.1,0.00100001]
[1759886063475,5.20364398,4466.2,4466.1,0.00100001]
[1759886063627,1.84918977,4466.2,4466.1,0.00100001]
[1759886063943,0.1112,4467.0,4466.4,2.2388968]
[1759886064145,0.1112,4467.0,4466.5,0.90858256]
[1759886064338,0.1112,4467.4,4466.8,2.23873804]
[1759886064537,0.1112,4467.4,4466.9,2.69945463]
[1759886064742,0.1112,4467.4,4467.0,0.4384]
[1759886064942,0.1112,4467.4,4467.1,0.46078588]
[1759886065151,0.1112,4467.4,4467.2,0.26993857]
[1759886065324,0.48259426,4468.0,4467.3,0.02238488]
[1759886065530,0.1112,4468.4,4467.6,0.1112]
[1759886065863,0.61331373,4468.9,4467.9,0.1112]
[1759886065864,0.1212,4468.9,4467.9,0.1112]
[1759886066030,0.1212,4468.9,4468.2,0.1112]
[1759886066232,0.1212,4468.9,4468.3,5.23872544]
[1759886066429,0.1212,4468.9,4468.5,2.23784451]
[1759886066647,0.01,4468.9,4468.7,2.23778469]
[1759886066851,0.01,4468.9,4468.8,0.67553631]
[1759886067152,0.01,4468.9,4468.8,3.04685088]
[1759886067877,0.012,4468.9,4468.8,3.04685088]
[1759886069177,0.012,4468.9,4468.8,3.02447351]
[1759886069376,0.012,4468.9,4468.8,3.04685088]
[1759886071587,0.012,4468.9,4468.8,3.65807351]
[1759886071885,0.012,4468.9,4468.8,3.68045088]
[1759886073468,0.012,4468.9,4468.8,0.78673631]
[1759886073786,0.012,4468.9,4468.8,5.56347351]
[1759886074105,0.012,4468.9,4468.8,5.3263372]
[1759886075681,0.012,4468.9,4468.8,0.1112]
[1759886075995,0.012,4468.9,4468.8,3.0886]
[1759886076161,0.012,4468.9,4468.8,5.3263372]
[1759886076491,0.012,4468.9,4468.8,6.08275458]
[1759886077402,0.012,4468.9,4468.8,3.84501738]
[1759886077593,0.012,4468.9,4468.8,3.0886]
[1759886078092,0.012,4468.9,4468.8,5.3263372]
[1759886078790,0.012,4468.9,4468.8,3.0876]
[1759886078967,0.012,4468.9,4468.8,5.3253372]
[1759886080463,0.012,4468.9,4468.8,3.0876]
[1759886080663,0.012,4468.9,4468.8,0.1112]
[1759886080993,0.012,4468.9,4468.8,2.538]
[1759886081359,0.012,4468.9,4468.6,0.1112]
[1759886081628,2.23777284,4468.8,4468.7,2.538]
[1759886081802,2.23785399,4468.6,4467.6,0.4543]
[1759886082009,2.23779427,4468.7,4467.7,2.9923]
[1759886082232,2.23779427,4468.7,4467.8,0.4543]
[1759886082450,2.2377372,4468.8,4467.8,0.4543]
[1759886082739,2.2377372,4468.8,4467.9,2.538]
[1759886082740,0.4536,4468.6,4467.9,2.538]
[1759886082901,2.23839908,4467.5,4466.8,0.4543]
[1759886083096,0.012,4468.9,4466.9,2.54]
[1759886083097,0.4536,4468.0,4466.9,2.54]
[1759886083313,1.92,4467.9,4466.9,2.54]
[1759886083536,0.11482741,4468.3,4467.0,0.02238638]
[1759886083828,2.23841404,4467.5,4467.0,0.02238638]
[1759886083995,2.23813786,4468.0,4467.0,0.4543]
[1759886084193,2.23852975,4467.3,4467.0,0.4543]
[1759886084503,2.23853522,4467.3,4467.0,0.4543]
[1759886084723,2.23808777,4468.1,4467.0,0.4543]
[1759886084724,2.2385849,4467.2,4467.0,0.4543]
[1759886084925,2.23849852,4467.3,4467.0,0.4543]
[1759886085361,1.92,4468.3,4467.0,0.4543]